[Event "December 12 Late 2023"]
[Site "https://www.chess.com"]
[Date "2023.12.12"]
[Round "11"]
[White "Tari, Aryan"]
[Black "Drygalov, Andrey"]
[Result "1-0"]
[Board "5"]
[TimeControl "180+1"]
[WhiteFideId "1510045"]
[BlackFideId "24171735"]
[WhiteElo "2899"]
[BlackElo "3009"]
[WhiteTeam "NOR"]
[BlackTeam "RUS"]
[WhiteClock "0:00:17"]
[BlackClock "0:00:00"]

1. e4 {[%clk 0:03:00]}  c5 {[%clk 0:03:00]} 2. Nf3 {[%clk 0:03:00]}  d6 {[%clk 0:03:01]} 3. Bb5+ {[%clk 0:02:59]}  Nd7 {[%clk 0:03:01]} 4. d4 {[%clk 0:02:54]}  cxd4 {[%clk 0:03:00]} 5. Nxd4 {[%clk 0:02:55]}  a6 {[%clk 0:02:57]} 6. Bd3 {[%clk 0:02:49]}  Ngf6 {[%clk 0:02:57]} 7. O-O {[%clk 0:02:49]}  e6 {[%clk 0:02:56]} 8. c4 {[%clk 0:02:49]}  Be7 {[%clk 0:02:56]} 9. Nc3 {[%clk 0:02:49]}  O-O {[%clk 0:02:57]} 10. Re1 {[%clk 0:02:49]}  Qc7 {[%clk 0:02:57]} 11. b3 {[%clk 0:02:28]}  b5 {[%clk 0:02:55]} 12. Bb2 {[%clk 0:02:28]}  b4 {[%clk 0:02:46]} 13. Na4 {[%clk 0:02:23]}  Nc5 {[%clk 0:02:45]} 14. Nxc5 {[%clk 0:02:19]}  Qxc5 {[%clk 0:02:39]} 15. a3 {[%clk 0:02:17]}  bxa3 {[%clk 0:02:32]} 16. Rxa3 {[%clk 0:02:18]}  Bb7 {[%clk 0:02:27]} 17. Qa1 {[%clk 0:02:16]}  Qb6 {[%clk 0:02:13]} 18. Nf3 {[%clk 0:02:11]}  e5 {[%clk 0:02:00]} 19. Bc3 {[%clk 0:02:09]}  Nd7 {[%clk 0:01:47]} 20. b4 {[%clk 0:02:05]}  Qc7 {[%clk 0:01:46]} 21. Nd2 {[%clk 0:02:03]}  Rfc8 {[%clk 0:01:38]} 22. Nf1 {[%clk 0:02:01]}  Nf8 {[%clk 0:01:17]} 23. Ne3 {[%clk 0:02:00]}  Ne6 {[%clk 0:01:18]} 24. Nd5 {[%clk 0:01:35]}  Qd8 {[%clk 0:01:18]} 25. Bf1 {[%clk 0:01:33]}  Bg5 {[%clk 0:01:17]} 26. g3 {[%clk 0:01:31]}  h5 {[%clk 0:01:16]} 27. Qd1 {[%clk 0:01:30]}  h4 {[%clk 0:01:16]} 28. Qg4 {[%clk 0:01:29]}  hxg3 {[%clk 0:01:15]} 29. hxg3 {[%clk 0:01:29]}  Bh6 {[%clk 0:01:13]} 30. Ba1 {[%clk 0:01:26]}  g6 {[%clk 0:01:06]} 31. Rf3 {[%clk 0:01:23]}  Bg7 {[%clk 0:01:04]} 32. Rd1 {[%clk 0:01:14]}  a5 {[%clk 0:00:54]} 33. c5 {[%clk 0:01:11]}  Nd4 {[%clk 0:00:51]} 34. Bxd4 {[%clk 0:01:07]}  exd4 {[%clk 0:00:51]} 35. Nb6 {[%clk 0:00:56]}  dxc5 {[%clk 0:00:36]} 36. Nxa8 {[%clk 0:00:48]}  cxb4 {[%clk 0:00:35]} 37. Qf4 {[%clk 0:00:34]}  f6 {[%clk 0:00:31]} 38. Bh3 {[%clk 0:00:33]}  Rc6 {[%clk 0:00:24]} 39. Qg4 {[%clk 0:00:29]}  Bxa8 {[%clk 0:00:20]} 40. Qxg6 {[%clk 0:00:28]}  Qe7 {[%clk 0:00:18]} 41. Bf1 {[%clk 0:00:19]}  Qe5 {[%clk 0:00:12]} 42. Rf5 {[%clk 0:00:18]}  Qxe4 {[%clk 0:00:10]} 43. Bg2 {[%clk 0:00:18]}  Qe2 {[%clk 0:00:07]} 44. Bd5+ {[%clk 0:00:17]}  Re6 {[%clk 0:00:05]} 45. Qe8+ {[%clk 0:00:17]}  Kh7 {[%clk 0:00:06]} 46. Rh5+ {[%clk 0:00:17]}  Bh6 {[%clk 0:00:00]} 47. Qf7+ {[%clk 0:00:17]} 1-0

[Event "December 12 Late 2023"]
[Site "https://www.chess.com"]
[Date "2023.12.12"]
[Round "11"]
[White "Duda, Jan-Krzysztof"]
[Black "Adewumi, Tanitoluwa"]
[Result "0-1"]
[Board "9"]
[TimeControl "180+1"]
[WhiteFideId "1170546"]
[BlackFideId "30966396"]
[WhiteElo "3057"]
[BlackElo "2780"]
[WhiteTeam "POL"]
[BlackTeam "USA"]
[WhiteClock "0:00:00"]
[BlackClock "0:00:08"]

1. Nh3 {[%clk 0:02:41]}  Nf6 {[%clk 0:02:56]} 2. g3 {[%clk 0:02:41]}  e5 {[%clk 0:02:54]} 3. Bg2 {[%clk 0:02:41]}  d5 {[%clk 0:02:54]} 4. f3 {[%clk 0:02:41]}  Bxh3 {[%clk 0:02:44]} 5. Bxh3 {[%clk 0:02:41]}  h5 {[%clk 0:02:44]} 6. e3 {[%clk 0:02:38]}  Bd6 {[%clk 0:02:38]} 7. c3 {[%clk 0:02:38]}  c6 {[%clk 0:02:37]} 8. d4 {[%clk 0:02:38]}  Nbd7 {[%clk 0:02:37]} 9. b3 {[%clk 0:02:33]}  Qe7 {[%clk 0:02:30]} 10. O-O {[%clk 0:02:32]}  O-O-O {[%clk 0:02:14]} 11. a4 {[%clk 0:02:32]}  Kb8 {[%clk 0:02:00]} 12. Ra2 {[%clk 0:02:32]}  g5 {[%clk 0:01:51]} 13. Bf5 {[%clk 0:02:28]}  h4 {[%clk 0:01:46]} 14. g4 {[%clk 0:02:28]}  h3 {[%clk 0:01:47]} 15. Re2 {[%clk 0:02:20]}  e4 {[%clk 0:01:42]} 16. Nd2 {[%clk 0:02:02]}  Rh4 {[%clk 0:01:00]} 17. Ref2 {[%clk 0:01:43]}  exf3 {[%clk 0:00:32]} 18. Qxf3 {[%clk 0:01:44]}  Rdh8 {[%clk 0:00:18]} 19. Kh1 {[%clk 0:01:26]}  Nf8 {[%clk 0:00:06]} 20. b4 {[%clk 0:01:17]}  Ng8 {[%clk 0:00:02]} 21. e4 {[%clk 0:01:15]}  Nh6 {[%clk 0:00:02]} 22. e5 {[%clk 0:01:13]}  Bc7 {[%clk 0:00:02]} 23. b5 {[%clk 0:01:04]}  Ne6 {[%clk 0:00:02]} 24. bxc6 {[%clk 0:01:04]}  bxc6 {[%clk 0:00:03]} 25. Nc4 {[%clk 0:00:51]}  dxc4 {[%clk 0:00:02]} 26. Qxc6 {[%clk 0:00:51]}  Nxf5 {[%clk 0:00:02]} 27. gxf5 {[%clk 0:00:49]}  Nf4 {[%clk 0:00:02]} 28. Bxf4 {[%clk 0:00:20]}  Rxf4 {[%clk 0:00:02]} 29. Rb1+ {[%clk 0:00:20]}  Kc8 {[%clk 0:00:01]} 30. Rxf4 {[%clk 0:00:09]}  gxf4 {[%clk 0:00:01]} 31. Rb7 {[%clk 0:00:07]}  Rg8 {[%clk 0:00:01]} 32. f6 {[%clk 0:00:06]}  Qd7 {[%clk 0:00:01]} 33. Rb8+ {[%clk 0:00:06]}  Kxb8 {[%clk 0:00:01]} 34. Qxd7 {[%clk 0:00:07]}  f3 {[%clk 0:00:02]} 35. Qb5+ {[%clk 0:00:06]}  Kc8 {[%clk 0:00:02]} 36. Qa6+ {[%clk 0:00:05]}  Kb8 {[%clk 0:00:02]} 37. Qb5+ {[%clk 0:00:03]}  Kc8 {[%clk 0:00:02]} 38. Qxc4 {[%clk 0:00:04]}  f2 {[%clk 0:00:02]} 39. Qf1 {[%clk 0:00:03]}  Rg1+ {[%clk 0:00:02]} 40. Qxg1 {[%clk 0:00:04]}  fxg1=Q+ {[%clk 0:00:03]} 41. Kxg1 {[%clk 0:00:04]}  Ba5 {[%clk 0:00:04]} 42. e6 {[%clk 0:00:04]}  Bxc3 {[%clk 0:00:03]} 43. exf7 {[%clk 0:00:03]}  Bxd4+ {[%clk 0:00:04]} 44. Kf1 {[%clk 0:00:03]}  Bc5 {[%clk 0:00:04]} 45. Ke2 {[%clk 0:00:04]}  Kd7 {[%clk 0:00:05]} 46. Kf3 {[%clk 0:00:04]}  Ke6 {[%clk 0:00:05]} 47. Kg4 {[%clk 0:00:04]}  Kxf7 {[%clk 0:00:06]} 48. Kxh3 {[%clk 0:00:04]}  Kxf6 {[%clk 0:00:06]} 49. Kg4 {[%clk 0:00:05]}  Ke5 {[%clk 0:00:06]} 50. h4 {[%clk 0:00:05]}  Kd5 {[%clk 0:00:06]} 51. h5 {[%clk 0:00:05]}  Kc4 {[%clk 0:00:07]} 52. Kf5 {[%clk 0:00:05]}  Bd4 {[%clk 0:00:06]} 53. a5 {[%clk 0:00:05]}  Kb5 {[%clk 0:00:06]} 54. Ke4 {[%clk 0:00:05]}  Bh8 {[%clk 0:00:06]} 55. h6 {[%clk 0:00:03]}  Kxa5 {[%clk 0:00:07]} 56. Kd3 {[%clk 0:00:04]}  Kb4 {[%clk 0:00:07]} 57. Kc2 {[%clk 0:00:00]}  a5 {[%clk 0:00:08]} 0-1

[Event "December 12 Late 2023"]
[Site "https://www.chess.com"]
[Date "2023.12.12"]
[Round "11"]
[White "Paravyan, David"]
[Black "Yuan, Qingyu"]
[Result "1-0"]
[Board "11"]
[TimeControl "180+1"]
[WhiteFideId "4194985"]
[BlackFideId "8609772"]
[WhiteElo "3019"]
[BlackElo "2799"]
[WhiteTeam "FID"]
[BlackTeam "CHN"]
[WhiteClock "0:00:25"]
[BlackClock "0:00:00"]

1. e4 {[%clk 0:03:00]}  e5 {[%clk 0:03:00]} 2. Nf3 {[%clk 0:03:00]}  Nc6 {[%clk 0:03:01]} 3. Bc4 {[%clk 0:02:59]}  Bc5 {[%clk 0:03:00]} 4. d3 {[%clk 0:02:59]}  Nf6 {[%clk 0:03:01]} 5. O-O {[%clk 0:02:59]}  O-O {[%clk 0:03:01]} 6. c3 {[%clk 0:02:59]}  d5 {[%clk 0:03:02]} 7. exd5 {[%clk 0:03:00]}  Nxd5 {[%clk 0:03:02]} 8. a4 {[%clk 0:02:59]}  Bf5 {[%clk 0:02:58]} 9. b4 {[%clk 0:02:58]}  Be7 {[%clk 0:02:57]} 10. Re1 {[%clk 0:02:51]}  Nb6 {[%clk 0:02:18]} 11. Bb5 {[%clk 0:02:50]}  e4 {[%clk 0:02:06]} 12. dxe4 {[%clk 0:02:51]}  Qxd1 {[%clk 0:02:05]} 13. Rxd1 {[%clk 0:02:52]}  Bxe4 {[%clk 0:02:05]} 14. Nbd2 {[%clk 0:02:52]}  Bg6 {[%clk 0:01:57]} 15. Bxc6 {[%clk 0:01:57]}  bxc6 {[%clk 0:01:56]} 16. Nb3 {[%clk 0:01:58]}  Bc2 {[%clk 0:01:23]} 17. Re1 {[%clk 0:01:57]}  Bf6 {[%clk 0:01:19]} 18. Nbd4 {[%clk 0:01:56]}  Bxa4 {[%clk 0:01:18]} 19. Bf4 {[%clk 0:01:51]}  Rfc8 {[%clk 0:01:16]} 20. Be5 {[%clk 0:01:50]}  Be7 {[%clk 0:00:54]} 21. Bxg7 {[%clk 0:01:46]}  Bxb4 {[%clk 0:00:54]} 22. Nf5 {[%clk 0:01:31]}  Bf8 {[%clk 0:00:39]} 23. Bd4 {[%clk 0:01:13]}  Bc2 {[%clk 0:00:36]} 24. Ne7+ {[%clk 0:01:10]}  Bxe7 {[%clk 0:00:36]} 25. Rxe7 {[%clk 0:01:11]}  Nd5 {[%clk 0:00:34]} 26. Re2 {[%clk 0:01:10]}  Bd3 {[%clk 0:00:30]} 27. Rea2 {[%clk 0:01:10]}  a6 {[%clk 0:00:29]} 28. Ne5 {[%clk 0:01:10]}  Bf5 {[%clk 0:00:21]} 29. Ra5 {[%clk 0:01:05]}  f6 {[%clk 0:00:14]} 30. Nxc6 {[%clk 0:00:42]}  Bd7 {[%clk 0:00:14]} 31. Na7 {[%clk 0:00:36]}  Rxa7 {[%clk 0:00:08]} 32. Bxa7 {[%clk 0:00:37]}  Bb5 {[%clk 0:00:08]} 33. c4 {[%clk 0:00:30]}  Bxc4 {[%clk 0:00:07]} 34. Rc5 {[%clk 0:00:31]}  Bb3 {[%clk 0:00:02]} 35. Ra3 {[%clk 0:00:31]}  Nf4 {[%clk 0:00:01]} 36. Rxb3 {[%clk 0:00:29]}  Rd8 {[%clk 0:00:02]} 37. h3 {[%clk 0:00:29]}  Rd1+ {[%clk 0:00:02]} 38. Kh2 {[%clk 0:00:30]}  Ne6 {[%clk 0:00:02]} 39. Rc6 {[%clk 0:00:29]}  Kf7 {[%clk 0:00:03]} 40. Rxa6 {[%clk 0:00:28]}  Nf4 {[%clk 0:00:03]} 41. Rf3 {[%clk 0:00:27]}  Ne6 {[%clk 0:00:02]} 42. Be3 {[%clk 0:00:27]}  Rb1 {[%clk 0:00:01]} 43. Rf5 {[%clk 0:00:25]}  Ra1 {[%clk 0:00:00]} 44. Rxa1 {[%clk 0:00:25]} 1-0

[Event "December 12 Late 2023"]
[Site "https://www.chess.com"]
[Date "2023.12.12"]
[Round "11"]
[White "Troff, Kayden"]
[Black "Khismatullin, Denis"]
[Result "1-0"]
[Board "12"]
[TimeControl "180+1"]
[WhiteFideId "2047896"]
[BlackFideId "4142578"]
[WhiteElo "2788"]
[BlackElo "2953"]
[WhiteTeam "USA"]
[BlackTeam "RUS"]
[WhiteClock "0:00:06"]
[BlackClock "0:00:00"]

1. d4 {[%clk 0:03:00]}  Nf6 {[%clk 0:02:58]} 2. Nf3 {[%clk 0:03:01]}  d5 {[%clk 0:02:57]} 3. Bf4 {[%clk 0:02:59]}  c5 {[%clk 0:02:57]} 4. e3 {[%clk 0:03:00]}  Nc6 {[%clk 0:02:57]} 5. Nc3 {[%clk 0:03:00]}  cxd4 {[%clk 0:02:52]} 6. Nxd4 {[%clk 0:02:59]}  Bg4 {[%clk 0:02:44]} 7. Nxc6 {[%clk 0:02:49]}  bxc6 {[%clk 0:02:42]} 8. Qd4 {[%clk 0:02:49]}  Bd7 {[%clk 0:02:37]} 9. e4 {[%clk 0:02:40]}  Qb6 {[%clk 0:02:36]} 10. Qxb6 {[%clk 0:02:38]}  axb6 {[%clk 0:02:37]} 11. e5 {[%clk 0:02:32]}  Ng4 {[%clk 0:02:27]} 12. h3 {[%clk 0:02:30]}  g5 {[%clk 0:02:24]} 13. Bxg5 {[%clk 0:01:35]}  Nxe5 {[%clk 0:02:23]} 14. Be3 {[%clk 0:01:35]}  b5 {[%clk 0:02:19]} 15. f4 {[%clk 0:01:21]}  Ng6 {[%clk 0:02:09]} 16. g4 {[%clk 0:01:17]}  Bg7 {[%clk 0:02:01]} 17. Nd1 {[%clk 0:00:58]}  h5 {[%clk 0:01:58]} 18. g5 {[%clk 0:00:50]}  e5 {[%clk 0:01:55]} 19. fxe5 {[%clk 0:00:49]}  Bxe5 {[%clk 0:01:53]} 20. c3 {[%clk 0:00:48]}  O-O {[%clk 0:01:52]} 21. Kd2 {[%clk 0:00:47]}  Rfe8 {[%clk 0:01:49]} 22. Nf2 {[%clk 0:00:42]}  Bg3 {[%clk 0:01:42]} 23. Nd3 {[%clk 0:00:40]}  Bf5 {[%clk 0:01:40]} 24. Nc5 {[%clk 0:00:38]}  Rxe3 {[%clk 0:01:38]} 25. Kxe3 {[%clk 0:00:35]}  Re8+ {[%clk 0:01:37]} 26. Kf3 {[%clk 0:00:31]}  h4 {[%clk 0:01:34]} 27. Rd1 {[%clk 0:00:17]}  Bd6 {[%clk 0:01:27]} 28. Bd3 {[%clk 0:00:17]}  Bxc5 {[%clk 0:01:22]} 29. Bxf5 {[%clk 0:00:16]}  Re3+ {[%clk 0:01:21]} 30. Kg4 {[%clk 0:00:14]}  Rg3+ {[%clk 0:01:19]} 31. Kh5 {[%clk 0:00:14]}  Nf4+ {[%clk 0:01:15]} 32. Kxh4 {[%clk 0:00:13]}  Bf2 {[%clk 0:01:11]} 33. Rhf1 {[%clk 0:00:14]}  Ng2+ {[%clk 0:00:58]} 34. Kh5 {[%clk 0:00:14]}  Rf3 {[%clk 0:00:56]} 35. Bg4 {[%clk 0:00:09]}  Nf4+ {[%clk 0:00:50]} 36. Kh6 {[%clk 0:00:09]}  Bc5 {[%clk 0:00:50]} 37. g6 {[%clk 0:00:07]}  Bf8+ {[%clk 0:00:45]} 38. Kg5 {[%clk 0:00:08]}  Be7+ {[%clk 0:00:37]} 39. Kh6 {[%clk 0:00:07]}  Bf8+ {[%clk 0:00:28]} 40. g7 {[%clk 0:00:07]}  Bxg7+ {[%clk 0:00:26]} 41. Kg5 {[%clk 0:00:08]}  Nxh3+ {[%clk 0:00:22]} 42. Kh4 {[%clk 0:00:06]}  Bf6+ {[%clk 0:00:19]} 43. Kh5 {[%clk 0:00:07]}  Nf4+ {[%clk 0:00:08]} 44. Kh6 {[%clk 0:00:07]}  Bg7+ {[%clk 0:00:07]} 45. Kg5 {[%clk 0:00:08]}  Nh3+ {[%clk 0:00:06]} 46. Bxh3 {[%clk 0:00:04]}  Rxh3 {[%clk 0:00:06]} 47. Kg4 {[%clk 0:00:05]}  Rh2 {[%clk 0:00:06]} 48. Rb1 {[%clk 0:00:06]}  Kf8 {[%clk 0:00:03]} 49. Kf4 {[%clk 0:00:05]}  Ke7 {[%clk 0:00:03]} 50. Rfe1+ {[%clk 0:00:05]}  Kd6 {[%clk 0:00:02]} 51. Kg3 {[%clk 0:00:06]}  Rc2 {[%clk 0:00:01]} 52. Kf3 {[%clk 0:00:06]}  Be5 {[%clk 0:00:01]} 53. Re2 {[%clk 0:00:06]}  f6 {[%clk 0:00:00]} 54. Rxc2 {[%clk 0:00:06]} 1-0

[Event "December 12 Late 2023"]
[Site "https://www.chess.com"]
[Date "2023.12.12"]
[Round "11"]
[White "Gorovets, Andrey"]
[Black "Nagare Kaivalya Sandip"]
[Result "1-0"]
[Board "15"]
[TimeControl "180+1"]
[WhiteFideId "13504037"]
[BlackFideId "25957929"]
[WhiteElo "2854"]
[BlackElo "2694"]
[WhiteTeam "BLR"]
[BlackTeam "IND"]
[WhiteClock "0:00:08"]
[BlackClock "0:00:12"]

1. Nf3 {[%clk 0:02:58]}  Nf6 {[%clk 0:02:59]} 2. g3 {[%clk 0:02:58]}  g6 {[%clk 0:02:59]} 3. c4 {[%clk 0:02:58]}  Bg7 {[%clk 0:02:59]} 4. d4 {[%clk 0:02:58]}  O-O {[%clk 0:02:59]} 5. Bg2 {[%clk 0:02:59]}  d6 {[%clk 0:02:59]} 6. Nc3 {[%clk 0:02:59]}  c5 {[%clk 0:02:58]} 7. d5 {[%clk 0:02:54]}  a6 {[%clk 0:02:49]} 8. a4 {[%clk 0:02:48]}  a5 {[%clk 0:02:44]} 9. O-O {[%clk 0:02:47]}  Bg4 {[%clk 0:02:39]} 10. h3 {[%clk 0:02:39]}  Bc8 {[%clk 0:02:35]} 11. e4 {[%clk 0:02:39]}  Nbd7 {[%clk 0:02:35]} 12. Re1 {[%clk 0:02:32]}  Ne8 {[%clk 0:02:35]} 13. Bf4 {[%clk 0:02:31]}  Ne5 {[%clk 0:02:31]} 14. Qe2 {[%clk 0:02:16]}  b6 {[%clk 0:02:27]} 15. Rac1 {[%clk 0:02:14]}  Bd7 {[%clk 0:02:24]} 16. b3 {[%clk 0:02:13]}  Qc8 {[%clk 0:02:24]} 17. Kh2 {[%clk 0:02:12]}  h5 {[%clk 0:02:20]} 18. Nd2 {[%clk 0:02:05]}  h4 {[%clk 0:02:13]} 19. gxh4 {[%clk 0:02:05]}  Nf6 {[%clk 0:02:08]} 20. Be3 {[%clk 0:01:55]}  Nh5 {[%clk 0:01:57]} 21. f4 {[%clk 0:01:55]}  Bf6 {[%clk 0:01:36]} 22. Nf1 {[%clk 0:01:38]}  Bxh4 {[%clk 0:01:29]} 23. fxe5 {[%clk 0:01:33]}  Bxe1 {[%clk 0:01:29]} 24. Qxe1 {[%clk 0:01:26]}  dxe5 {[%clk 0:01:29]} 25. Qh4 {[%clk 0:01:27]}  f6 {[%clk 0:01:17]} 26. Ng3 {[%clk 0:00:51]}  Ng7 {[%clk 0:01:08]} 27. Nh1 {[%clk 0:00:41]}  Kf7 {[%clk 0:01:07]} 28. Nf2 {[%clk 0:00:41]}  Rh8 {[%clk 0:01:06]} 29. Qg3 {[%clk 0:00:41]}  Nh5 {[%clk 0:01:02]} 30. Qf3 {[%clk 0:00:41]}  g5 {[%clk 0:01:00]} 31. Bxg5 {[%clk 0:00:39]}  Qg8 {[%clk 0:00:58]} 32. Be3 {[%clk 0:00:33]}  Qh7 {[%clk 0:00:57]} 33. d6 {[%clk 0:00:33]}  e6 {[%clk 0:00:55]} 34. Kg1 {[%clk 0:00:27]}  Rag8 {[%clk 0:00:53]} 35. Ng4 {[%clk 0:00:27]}  Ke8 {[%clk 0:00:28]} 36. Ne2 {[%clk 0:00:26]}  Rg6 {[%clk 0:00:18]} 37. Rf1 {[%clk 0:00:20]}  Rhg8 {[%clk 0:00:18]} 38. Rf2 {[%clk 0:00:20]}  Bc6 {[%clk 0:00:18]} 39. Ng3 {[%clk 0:00:19]}  f5 {[%clk 0:00:16]} 40. Nxf5 {[%clk 0:00:12]}  exf5 {[%clk 0:00:15]} 41. Qxf5 {[%clk 0:00:12]}  Bd7 {[%clk 0:00:14]} 42. Qxe5+ {[%clk 0:00:13]}  Kd8 {[%clk 0:00:15]} 43. Qd5 {[%clk 0:00:12]}  Bxg4 {[%clk 0:00:11]} 44. hxg4 {[%clk 0:00:11]}  Rxg4 {[%clk 0:00:12]} 45. Qa8+ {[%clk 0:00:09]}  Kd7 {[%clk 0:00:12]} 46. Qb7+ {[%clk 0:00:10]}  Kxd6 {[%clk 0:00:12]} 47. e5+ {[%clk 0:00:08]}  Kxe5 {[%clk 0:00:12]} 48. Qd5# {[%clk 0:00:08]} 1-0

[Event "December 12 Late 2023"]
[Site "https://www.chess.com"]
[Date "2023.12.12"]
[Round "11"]
[White "Sivakumar, Shaaketh"]
[Black "Holt, Conrad"]
[Result "1-0"]
[Board "16"]
[TimeControl "180+1"]
[WhiteFideId "30940176"]
[BlackFideId "2034387"]
[WhiteElo "2616"]
[BlackElo "2805"]
[WhiteTeam "USA"]
[BlackTeam "USA"]
[WhiteClock "0:01:02"]
[BlackClock "0:00:00"]

1. Nf3 {[%clk 0:03:00]}  d5 {[%clk 0:02:57]} 2. d4 {[%clk 0:03:00]}  Nf6 {[%clk 0:02:56]} 3. Bf4 {[%clk 0:02:58]}  c5 {[%clk 0:02:55]} 4. e3 {[%clk 0:02:58]}  Nc6 {[%clk 0:02:55]} 5. Nbd2 {[%clk 0:02:58]}  Bf5 {[%clk 0:02:50]} 6. c3 {[%clk 0:02:58]}  e6 {[%clk 0:02:51]} 7. Qb3 {[%clk 0:02:54]}  Qc8 {[%clk 0:02:50]} 8. c4 {[%clk 0:02:47]}  Be7 {[%clk 0:02:44]} 9. Be2 {[%clk 0:02:46]}  O-O {[%clk 0:02:43]} 10. O-O {[%clk 0:02:45]}  cxd4 {[%clk 0:02:33]} 11. Nxd4 {[%clk 0:02:45]}  Nxd4 {[%clk 0:02:30]} 12. exd4 {[%clk 0:02:46]}  dxc4 {[%clk 0:02:29]} 13. Bxc4 {[%clk 0:02:46]}  Qd7 {[%clk 0:02:22]} 14. Nf3 {[%clk 0:02:44]}  Rfc8 {[%clk 0:02:15]} 15. Rfd1 {[%clk 0:02:43]}  Bd6 {[%clk 0:02:05]} 16. Ne5 {[%clk 0:02:42]}  Qe7 {[%clk 0:02:00]} 17. Rac1 {[%clk 0:02:35]}  h6 {[%clk 0:01:50]} 18. f3 {[%clk 0:02:30]}  a6 {[%clk 0:01:27]} 19. a4 {[%clk 0:02:29]}  Rc7 {[%clk 0:01:17]} 20. Qb6 {[%clk 0:02:24]}  Rd8 {[%clk 0:00:24]} 21. Kh1 {[%clk 0:01:59]}  Bxe5 {[%clk 0:00:18]} 22. Bxe5 {[%clk 0:01:53]}  Rc6 {[%clk 0:00:18]} 23. Qb3 {[%clk 0:01:53]}  Rdc8 {[%clk 0:00:18]} 24. Rc3 {[%clk 0:01:51]}  Bg6 {[%clk 0:00:06]} 25. Rdc1 {[%clk 0:01:48]}  Kh7 {[%clk 0:00:04]} 26. a5 {[%clk 0:01:45]}  Qd7 {[%clk 0:00:05]} 27. Qd1 {[%clk 0:01:37]}  Nd5 {[%clk 0:00:05]} 28. Bxd5 {[%clk 0:01:34]}  Qxd5 {[%clk 0:00:06]} 29. Qa4 {[%clk 0:01:29]}  f6 {[%clk 0:00:05]} 30. Bg3 {[%clk 0:01:29]}  Rxc3 {[%clk 0:00:05]} 31. bxc3 {[%clk 0:01:29]}  Rc4 {[%clk 0:00:04]} 32. Qa3 {[%clk 0:01:27]}  Qc6 {[%clk 0:00:04]} 33. Bf2 {[%clk 0:01:23]}  Ra4 {[%clk 0:00:04]} 34. Qe7 {[%clk 0:01:22]}  Rxa5 {[%clk 0:00:04]} 35. h3 {[%clk 0:01:17]}  Ra2 {[%clk 0:00:03]} 36. Bh4 {[%clk 0:01:18]}  Kh8 {[%clk 0:00:01]} 37. c4 {[%clk 0:01:11]}  Bf5 {[%clk 0:00:00]} 38. c5 {[%clk 0:01:02]} 1-0

[Event "December 12 Late 2023"]
[Site "https://www.chess.com"]
[Date "2023.12.12"]
[Round "11"]
[White "Sai Krishna G V"]
[Black "Sjugirov, Sanan"]
[Result "1-0"]
[Board "18"]
[TimeControl "180+1"]
[WhiteFideId "5028280"]
[BlackFideId "4189302"]
[WhiteElo "2721"]
[BlackElo "2916"]
[WhiteTeam "IND"]
[BlackTeam "HUN"]
[WhiteClock "0:00:19"]
[BlackClock "0:00:48"]

1. d4 {[%clk 0:03:00]}  Nf6 {[%clk 0:03:00]} 2. c4 {[%clk 0:03:00]}  e6 {[%clk 0:03:00]} 3. Nf3 {[%clk 0:02:57]}  b6 {[%clk 0:03:00]} 4. g3 {[%clk 0:02:56]}  Bb7 {[%clk 0:03:01]} 5. Bg2 {[%clk 0:02:57]}  Bb4+ {[%clk 0:03:02]} 6. Bd2 {[%clk 0:02:56]}  c5 {[%clk 0:03:02]} 7. Bxb4 {[%clk 0:02:54]}  cxb4 {[%clk 0:03:03]} 8. d5 {[%clk 0:02:41]}  O-O {[%clk 0:03:00]} 9. O-O {[%clk 0:02:39]}  Na6 {[%clk 0:02:58]} 10. a3 {[%clk 0:02:25]}  exd5 {[%clk 0:02:52]} 11. Nh4 {[%clk 0:02:24]}  Re8 {[%clk 0:02:46]} 12. cxd5 {[%clk 0:02:21]}  Ne4 {[%clk 0:02:37]} 13. axb4 {[%clk 0:02:09]}  Nxb4 {[%clk 0:02:37]} 14. Nc3 {[%clk 0:01:53]}  Nd6 {[%clk 0:02:34]} 15. e4 {[%clk 0:01:44]}  a5 {[%clk 0:02:32]} 16. f4 {[%clk 0:01:37]}  Nc4 {[%clk 0:02:30]} 17. Qd4 {[%clk 0:01:29]}  Ba6 {[%clk 0:02:23]} 18. e5 {[%clk 0:01:20]}  Nc2 {[%clk 0:02:21]} 19. Qf2 {[%clk 0:01:05]}  Nxa1 {[%clk 0:02:20]} 20. Rxa1 {[%clk 0:01:06]}  b5 {[%clk 0:02:19]} 21. b3 {[%clk 0:00:51]}  b4 {[%clk 0:02:16]} 22. Ne4 {[%clk 0:00:42]}  Na3 {[%clk 0:02:14]} 23. Nf5 {[%clk 0:00:33]}  Rb8 {[%clk 0:02:10]} 24. Qf3 {[%clk 0:00:24]}  Qb6+ {[%clk 0:02:10]} 25. Kh1 {[%clk 0:00:24]}  Nb5 {[%clk 0:01:03]} 26. Nf6+ {[%clk 0:00:23]}  Kh8 {[%clk 0:01:03]} 27. Qg4 {[%clk 0:00:20]}  Rg8 {[%clk 0:01:03]} 28. Nxh7 {[%clk 0:00:19]}  Qg6 {[%clk 0:01:00]} 29. Ng5 {[%clk 0:00:19]}  Rge8 {[%clk 0:00:55]} 30. Nh4 {[%clk 0:00:19]}  Qh6 {[%clk 0:00:48]} 31. Nxf7+ {[%clk 0:00:19]} 1-0